bitfinex-derivatives/quotes_ETHF0:USTF0_20250317
["timestamp","ask_amount","ask_price","bid_price","bid_amount"]
[1742194028481,1.34842226,1893.0,1892.9,2.66773152]
[1742194029075,0.00792226,1893.0,1892.9,2.66773152]
[1742194030381,0.6737,1893.4,1893.3,1.05644]
[1742194030586,3.9227,1893.6,1893.4,1.05638]
[1742194030887,32.823,1893.5,1893.4,1.25806675]
[1742194031682,34.1686,1893.5,1893.4,1.25806675]
[1742194032674,29.303,1893.5,1893.4,1.25806675]
[1742194032879,0.00792226,1893.6,1893.5,1.05632]
[1742194033075,0.00792226,1893.6,1893.5,2.49412]
[1742194033988,0.00792226,1893.6,1893.5,2.69580675]
[1742194036785,0.00792226,1893.6,1893.5,1.25800675]
[1742194036981,4.27199226,1893.6,1893.5,0.20168675]
[1742194037386,3.21572226,1893.6,1893.5,0.20168675]
[1742194037587,3.21572226,1893.6,1893.5,1.25800675]
[1742194039877,0.00792226,1893.6,1893.5,1.25800675]
[1742194040783,1.06419226,1893.6,1893.5,0.20168675]
[1742194040983,5.24831572,1893.6,1893.5,0.20168675]
[1742194041182,5.33696513,1893.6,1893.5,0.20168675]
[1742194041688,1.05641,1893.4,1893.1,2.37741]
[1742194041983,4.9114,1893.3,1893.1,1.05651]
[1742194042393,1.4034,1893.3,1893.1,1.05651]
[1742194042687,1.4034,1893.3,1893.0,4.5287]
[1742194042688,3.507,1893.2,1893.0,5.58526]
[1742194043277,4.56351,1893.2,1893.0,3.2078]
[1742194043686,1.3675,1893.1,1893.0,3.2078]
[1742194043883,2.42405,1893.1,1893.0,3.2078]
[1742194044086,1.3675,1893.1,1893.0,3.2078]
[1742194044493,2.42405,1893.1,1893.0,3.2078]
[1742194044683,1.3675,1893.1,1893.0,3.2078]
[1742194044884,1.3675,1893.1,1893.0,4.2644]
[1742194045292,1.3675,1893.1,1893.0,4.9506]
[1742194045794,1.3675,1893.1,1893.0,4.2644]
[1742194046794,1.3675,1893.1,1893.0,3.2078]
[1742194046996,1.0566,1893.0,1892.7,1.06468226]
[1742194047196,5.5412,1892.9,1892.7,1.06468226]
[1742194047391,1.3597,1892.8,1892.7,1.06468226]
[1742194047691,1.3597,1892.8,1892.7,0.00792226]
[1742194049098,2.41642,1892.8,1892.7,0.00792226]
[1742194050897,8.28642,1892.8,1892.7,0.00792226]
[1742194051197,1.05685,1892.6,1892.4,3.2078]
[1742194051394,5.23658,1892.5,1892.4,3.2078]
[1742194051700,6.64108,1892.5,1892.3,1.3338]
[1742194051891,2.081,1892.4,1892.3,1.3338]
[1742194052092,2.081,1892.4,1892.2,4.97831]
[1742194052394,1.4035,1892.3,1892.2,4.98623226]
[1742194052597,1.4035,1892.3,1892.2,3.21572226]
[1742194053300,10.4813,1892.3,1891.5,3.2078]
[1742194053497,3.5,1892.2,1891.7,2.7905]
[1742194053803,4.9035,1892.2,1892.1,1.05711]
[1742194054594,3.505,1892.2,1892.1,4.26491]
[1742194054798,3.51,1892.4,1892.3,1.05695]
[1742194054989,4.8835,1892.4,1892.3,1.05695]
[1742194055396,8.0913,1892.4,1892.3,2.0894]
[1742194055601,8.8076,1892.4,1892.3,2.0894]
[1742194056392,5.5998,1892.4,1892.3,3.14639]
[1742194056703,4.5813,1892.4,1892.3,3.14639]
[1742194056893,8.0913,1892.4,1892.3,3.14639]
[1742194061592,8.0913,1892.4,1892.3,2.0894]
[1742194061793,9.14825,1892.4,1892.1,1.05708]
[1742194062002,2.1071,1892.3,1892.1,2.41918]
[1742194062201,1.4117,1892.2,1892.1,1.3621]
[1742194062598,1.4117,1892.2,1892.0,1.76914226]
[1742194062800,4.1766,1892.1,1892.0,3.13124226]
[1742194063294,4.1766,1892.1,1892.0,0.00792226]
[1742194063295,7.3844,1892.1,1892.0,0.00792226]
[1742194063694,4.1766,1892.1,1892.0,1.06508226]
[1742194063893,7.3844,1892.1,1892.0,0.00792226]
[1742194064205,7.3844,1892.1,1892.0,2.39078226]
[1742194064393,7.3844,1892.1,1892.0,1.33362226]
[1742194064699,7.3844,1892.1,1892.0,2.39078226]
[1742194064700,3.501,1892.1,1892.0,2.39078226]
[1742194065491,3.501,1892.1,1892.0,1.33362226]
[1742194065693,6.7088,1892.1,1892.0,1.33362226]
[1742194065998,6.7088,1892.1,1892.0,2.39078226]
[1742194067603,3.501,1892.1,1892.0,2.39078226]
[1742194068707,6.7088,1892.1,1892.0,2.39078226]
[1742194069513,3.501,1892.1,1892.0,2.39078226]
[1742194069803,3.501,1892.1,1892.0,1.33362226]
[1742194070004,4.8543,1892.1,1892.0,0.00792226]
[1742194070503,4.8543,1892.1,1892.0,1.06508226]
[1742194070702,4.8543,1892.1,1892.0,2.46848226]
[1742194072196,8.0621,1892.1,1892.0,0.00792226]
[1742194072499,9.11921,1892.1,1892.0,0.00792226]
[1742194074710,8.0621,1892.1,1892.0,0.00792226]
[1742194075206,9.11921,1892.1,1892.0,0.00792226]
[1742194075406,8.0621,1892.1,1892.0,1.06508226]
[1742194075796,8.0621,1892.1,1892.0,0.00792226]
[1742194076000,8.0621,1892.1,1892.0,1.06508226]
[1742194076202,8.0621,1892.1,1892.0,2.40018226]
[1742194077294,8.0621,1892.1,1892.0,1.34302226]
[1742194077500,8.0621,1892.1,1892.0,2.40018226]
[1742194078808,8.0411,1892.1,1892.0,2.40018226]
[1742194081809,9.09821,1892.1,1892.0,0.00792226]
[1742194082703,1.05719,1892.0,1891.7,4.26509]
[1742194082909,0.7092,1891.9,1891.8,1.05727]
[1742194083113,0.7092,1891.9,1891.8,2.41267]
[1742194083410,1.4194,1892.0,1891.9,1.05722]
[1742194083606,1.4194,1892.0,1891.9,2.41262]
[1742194083804,0.6771,1892.2,1892.1,1.05711]
[1742194084108,4.1571,1892.2,1892.1,1.05711]
[1742194084808,3.48,1892.2,1892.1,1.05711]
[1742194085108,4.8752,1892.2,1892.1,2.44721]
[1742194086304,1.3952,1892.2,1892.1,2.44721]
[1742194086612,3.48,1892.4,1892.3,1.05699]
[1742194086906,4.8752,1892.4,1892.2,2.44713]
[1742194087109,4.8752,1892.4,1892.0,1.4511]
[1742194087110,3.48,1892.4,1892.3,2.44709]
[1742194087911,3.48,1892.4,1892.3,1.3901]
[1742194088312,3.48,1892.4,1892.3,2.44709]
[1742194089108,3.48,1892.4,1892.2,1.057]
[1742194089304,4.9854,1892.3,1892.0,1.78404]
[1742194089509,0.698,1892.2,1892.0,3.12394]
[1742194089710,3.48,1892.1,1892.0,3.12394]
[1742194089915,3.48,1892.1,1892.0,1.78404]
[1742194090310,3.48,1892.1,1892.0,1.78406]
[1742194090717,3.48,1892.1,1892.0,0.7269]
[1742194090907,3.48,1892.1,1892.0,1.78406]
[1742194092028,3.2078,1892.3,1892.2,1.05705]
[1742194094711,9.382,1892.4,1892.3,1.05699]
[1742194096012,3.512,1892.4,1892.3,1.05699]
[1742194096219,0.00792226,1892.5,1892.4,1.05694]
[1742194096419,3.51892226,1892.5,1892.4,1.05694]
[1742194097018,4.24162226,1892.5,1892.4,1.05694]
[1742194098319,0.00792226,1892.5,1892.4,1.05694]
[1742194098526,3.51592226,1892.5,1892.4,1.05694]
[1742194099622,4.23372226,1892.5,1892.4,1.05694]
[1742194100926,4.91892226,1892.5,1892.4,1.05694]
[1742194103725,6.32502226,1892.5,1892.4,2.38184]
[1742194104225,5.63982226,1892.5,1892.4,2.38184]
[1742194108622,1.41402226,1892.5,1892.4,2.38184]
[1742194109426,0.6809,1892.9,1892.4,2.38184]
[1742194109427,6.7038,1892.8,1892.7,1.05677]
[1742194109730,1.4247,1892.9,1892.8,1.05672]
[1742194116325,0.00792226,1893.0,1892.9,1.05666]
[1742194120132,9.0778,1893.7,1892.9,4.26446]
[1742194120437,1.3514,1893.4,1893.0,2.0497]
[1742194120633,1.3514,1893.4,1893.1,1.3743]
[1742194120833,1.3514,1893.4,1893.3,1.05644]
[1742194121027,4.8474,1893.4,1893.3,1.05644]
[1742194121832,4.8454,1893.4,1893.3,1.05644]
[1742194124641,1.3514,1893.4,1893.3,1.05644]
[1742194125833,1.3514,1893.4,1893.1,0.7086]
[1742194126034,4.95827,1893.3,1893.0,1.05658]
[1742194126236,5.6642,1893.2,1893.0,1.05658]
[1742194126545,1.4475,1893.1,1893.0,1.05658]
[1742194127335,1.4475,1893.1,1893.0,2.41998]
[1742194127541,3.489,1893.2,1893.1,1.05655]
[1742194127843,1.3218,1893.2,1893.1,3.15535]
[1742194128041,1.3218,1893.2,1893.1,6.36315]
[1742194131351,4.2197,1893.4,1893.3,1.05644]
[1742194131552,4.9333,1893.4,1893.3,1.05644]
[1742194132643,6.3185,1893.4,1893.3,1.05644]
[1742194133049,6.3185,1893.4,1893.2,1.05646]
[1742194133252,1.3852,1893.3,1893.2,1.05649]
[1742194136248,1.3852,1893.3,1893.2,2.40109]
[1742194136746,1.3852,1893.3,1893.2,1.05649]
[1742194138250,4.8642,1893.3,1893.2,1.05649]
[1742194138458,4.8642,1893.3,1893.2,2.38479]
[1742194138749,4.8642,1893.3,1893.1,1.05651]
[1742194138953,4.8642,1893.3,1892.9,3.9027]
[1742194138954,3.479,1893.3,1893.2,1.05649]
[1742194143550,3.479,1893.3,1893.1,2.38481]
[1742194143743,3.479,1893.3,1893.1,1.05651]
[1742194144156,3.479,1893.3,1893.2,1.05649]
[1742194145558,6.6868,1893.3,1892.9,3.2078]
[1742194145757,1.05651,1893.2,1892.9,4.26443]
[1742194145952,0.6626,1893.1,1892.9,4.26443]
[1742194146259,1.3213,1893.1,1892.9,4.26443]
[1742194146760,1.3213,1893.1,1893.0,1.0566]
[1742194147454,6.6868,1893.3,1893.1,1.05655]
[1742194147660,8.1108,1893.3,1893.0,2.144]
[1742194147958,8.1108,1893.3,1893.1,1.4384]
[1742194148160,8.1108,1893.3,1893.2,1.05649]
[1742194151662,8.1108,1893.3,1893.1,2.49491]
[1742194151861,8.1108,1893.3,1893.0,1.76217]
[1742194152164,8.1108,1893.3,1893.2,1.05649]
[1742194156969,3.2078,1893.3,1893.2,1.05649]
[1742194157171,6.6858,1893.3,1893.2,1.05649]
[1742194157873,8.0181,1893.3,1893.2,1.05649]
[1742194158272,7.3577,1893.3,1893.2,1.05649]
[1742194159271,8.8164,1893.3,1893.2,1.05649]
[1742194159466,8.8164,1893.3,1893.0,1.4175]
[1742194159672,8.8164,1893.3,1892.9,1.05663]
[1742194159673,3.18382,1893.2,1892.9,1.05663]
[1742194159870,1.4587,1893.1,1892.9,1.05663]
[1742194160070,4.138,1893.0,1892.9,1.05663]
[1742194160777,4.9367,1893.0,1892.9,1.05663]
[1742194160979,4.9367,1893.0,1892.9,1.75473]
[1742194162180,6.6858,1893.3,1893.2,1.05649]
[1742194162383,8.0564,1893.3,1893.2,1.05649]
[1742194162883,3.2078,1893.3,1893.2,1.05649]
[1742194163273,3.2078,1893.3,1893.2,1.77109]
[1742194163877,4.8486,1893.4,1893.3,1.05644]
[1742194164171,4.8486,1893.4,1893.3,3.21124]
[1742194165879,5.5735,1893.4,1893.2,0.7146]
[1742194166079,1.9899,1893.3,1893.2,2.41079]
[1742194167389,1.9899,1893.3,1893.2,1.05649]
[1742194169480,1.3234,1893.3,1893.2,1.05649]
[1742194169875,1.3234,1893.3,1893.2,2.47949]
[1742194174888,1.3234,1893.3,1893.2,1.05649]
[1742194176992,1.3234,1893.3,1893.1,2.39102]
[1742194177178,0.6711,1893.2,1893.1,2.39102]
[1742194177985,0.6711,1893.2,1893.0,1.05657]
[1742194178289,5.5507,1893.1,1893.0,1.05657]
[1742194179589,5.5507,1893.1,1893.0,2.40227]
[1742194182292,5.5507,1893.1,1892.9,5.61013]
[1742194182494,1.3492,1893.0,1892.9,4.26443]
[1742194186197,3.478,1893.1,1893.0,1.0566]
[1742194186387,4.8205,1893.1,1892.8,0.00792226]
[1742194186588,2.6751,1893.0,1892.9,1.05666]
[1742194186991,2.6751,1893.0,1892.8,0.00792226]
[1742194187299,1.3425,1892.9,1892.8,0.00792226]
[1742194188899,1.3425,1892.9,1892.8,1.06464226]
[1742194189094,1.3425,1892.9,1892.8,3.14344226]
[1742194193403,1.3425,1892.9,1892.8,0.00792226]
[1742194193604,5.60696,1892.9,1892.8,0.00792226]
[1742194193790,6.58572733,1892.9,1892.8,0.00792226]
[1742194193995,5.52906733,1892.9,1892.4,1.3537]
[1742194194197,1.05688,1892.5,1892.2,1.4214]
[1742194194493,6.2438,1892.4,1892.3,1.05699]
[1742194194800,6.2438,1892.4,1892.2,2.7751]
[1742194195102,1.4229,1892.3,1892.2,3.11835]
[1742194196002,1.4229,1892.3,1892.1,3.21572226]
[1742194196003,1.4229,1892.3,1892.1,4.27279226]
[1742194197103,1.4229,1892.3,1892.2,1.05705]
[1742194197612,1.4229,1892.3,1892.1,4.27280226]
[1742194197806,1.4229,1892.3,1892.2,1.05705]
[1742194198706,1.4229,1892.3,1892.1,4.27279226]
[1742194198911,1.4229,1892.3,1892.2,1.05705]
[1742194199312,1.4229,1892.3,1892.1,4.27279226]
[1742194200610,1.05705,1892.2,1892.1,0.00792226]
[1742194201011,2.40225,1892.2,1892.1,0.00792226]
[1742194201510,2.40225,1892.2,1891.8,1.05727]
[1742194201707,8.032,1892.1,1891.9,1.0572]
[1742194201905,2.013,1892.0,1891.9,1.0572]
[1742194202108,2.6792,1892.0,1891.9,1.0572]
[1742194202508,1.3452,1892.0,1891.9,1.0572]
[1742194205706,0.00792226,1892.5,1891.9,5.7078]
[1742194205912,3.48692226,1892.5,1892.4,1.05694]
[1742194206717,4.88952226,1892.5,1892.4,1.05694]
[1742194206909,1.41052226,1892.5,1892.4,1.05694]
[1742194207109,0.00792226,1892.5,1892.4,1.71694]
[1742194207413,0.00792226,1892.5,1892.4,3.11094]
[1742194210616,0.00792226,1892.5,1892.4,1.05694]
[1742194212115,0.00792226,1892.5,1892.4,2.50654]
[1742194212706,0.00792226,1892.5,1892.3,4.26476]
[1742194213216,3.479,1892.4,1892.3,3.2078]
[1742194213413,5.6293,1892.4,1892.3,4.26479]
[1742194213609,5.6293,1892.4,1892.2,1.05701]
[1742194213813,1.4287,1892.3,1892.2,1.05701]
[1742194214013,1.4287,1892.3,1892.2,2.48051]
[1742194215220,3.479,1892.4,1892.3,1.05699]
[1742194215412,4.9077,1892.4,1892.3,2.48049]
[1742194217617,4.9077,1892.4,1892.3,1.05699]
[1742194227728,4.9077,1892.4,1892.3,1.75569]
[1742194228326,4.9077,1892.4,1892.3,1.05699]
[1742194228833,5.6335,1892.4,1892.3,1.05699]
[1742194229930,5.6335,1892.4,1892.2,1.05701]
[1742194230131,1.4297,1892.3,1892.2,1.05701]
[1742194230835,1.4297,1892.3,1892.1,1.05707]
[1742194231027,0.7094,1892.2,1892.1,1.05707]
[1742194231229,0.7094,1892.2,1891.8,3.21572226]
[1742194231535,5.5149,1892.1,1892.0,1.05715]
[1742194232528,5.5149,1892.1,1892.0,1.05716]
[1742194240238,5.5149,1892.1,1891.9,1.05719]
[1742194240439,1.3511,1892.0,1891.9,1.05719]
[1742194240635,1.3511,1892.0,1891.8,4.27296226]
[1742194240937,0.7073,1891.9,1891.5,1.05743]
[1742194241137,9.09521,1891.8,1891.5,1.05743]
[1742194241339,1.3511,1891.7,1891.6,1.05739]
[1742194242442,1.3511,1891.7,1891.6,2.47139]
[1742194242643,1.3511,1891.7,1891.6,3.16319]
[1742194245343,1.3511,1891.7,1891.6,2.47139]
[1742194245644,1.3511,1891.7,1891.6,1.414]
[1742194245847,1.3511,1891.7,1891.6,2.47139]
[1742194250147,4.8311,1891.7,1891.6,5.67919]
[1742194250338,4.26493,1892.1,1891.6,5.3049]
[1742194250339,3.912,1892.1,1891.6,5.3049]
[1742194250539,4.8918,1892.0,1891.9,1.05717]
[1742194251242,1.4118,1892.0,1891.9,1.05717]
[1742194251442,4.8918,1892.0,1891.9,1.74027]
[1742194251643,4.8918,1892.0,1891.9,3.09117]
[1742194252942,4.8918,1892.0,1891.9,2.034]
[1742194253138,4.8918,1892.0,1891.8,1.05726]
[1742194253350,2.0633,1891.9,1891.8,2.47636]
[1742194253643,6.32832,1891.9,1891.8,1.4191]
[1742194253849,5.2711,1891.9,1891.8,1.05727]
[1742194254037,2.0633,1891.9,1891.8,2.47637]
[1742194254946,3.12052,1891.9,1891.7,1.7329]
[1742194255140,1.3912,1891.8,1891.7,1.0573]
[1742194255346,2.1135,1891.8,1891.7,1.0573]
[1742194255539,3.17079,1891.8,1891.5,2.43788148]
[1742194255847,4.8145,1891.7,1891.6,1.05739]
[1742194257351,4.8145,1891.7,1891.6,2.41349]
[1742194259849,4.8145,1891.7,1891.5,1.38698148]
[1742194259850,4.8145,1891.7,1891.5,1.77119148]
[1742194260049,2.1543,1891.6,1891.5,3.08929148]
[1742194260250,2.1543,1891.6,1891.5,1.77119148]
[1742194260450,1.4312,1891.6,1891.5,1.77119148]
[1742194261656,9.0778,1891.9,1891.7,1.0573]
[1742194261856,3.479,1891.8,1891.7,1.0573]
[1742194263048,4.8537,1891.8,1891.7,1.0573]
[1742194264056,1.3747,1891.8,1891.7,1.0573]
[1742194264250,6.5931,1891.9,1891.8,1.05727]
[1742194264251,9.349,1891.9,1891.8,1.05727]
[1742194264554,5.87,1891.9,1891.8,1.05727]
[1742194266059,3.479,1892.1,1891.7,2.64333]
[1742194266360,3.479,1892.1,1892.0,1.05716]
[1742194266661,1.4504,1892.2,1892.1,1.05711]
[1742194266860,4.9294,1892.2,1892.1,1.05711]
[1742194268654,3.479,1892.2,1892.1,1.05711]
[1742194268851,1.3802,1892.3,1892.2,1.05705]
[1742194269051,4.8592,1892.3,1892.2,1.05705]
[1742194269454,3.479,1892.3,1892.2,1.05705]
[1742194269659,4.8592,1892.4,1892.3,1.05699]
[1742194270256,4.8592,1892.4,1892.3,1.78569]
[1742194270755,4.8592,1892.4,1892.3,0.7287]
[1742194270958,4.8592,1892.4,1892.3,1.78569]
[1742194272065,4.8592,1892.4,1892.3,1.05699]
[1742194273564,5.5812,1892.4,1892.3,1.05699]
[1742194276073,1.3802,1892.4,1892.3,1.05699]
[1742194276275,1.40372226,1892.5,1892.4,1.05694]
[1742194276564,3.9256,1892.8,1892.7,1.05677]
[1742194277372,7.4036,1892.8,1892.7,1.05677]
[1742194277569,3.9256,1892.8,1892.7,1.05677]
[1742194277768,8.7325,1892.8,1892.7,1.05677]
[1742194278071,5.5247,1892.8,1892.7,3.20177]
[1742194278774,4.8069,1892.8,1892.7,3.20177]
[1742194279168,1.3289,1892.8,1892.7,3.20177]
[1742194279372,3.48592226,1892.9,1892.8,1.05672]
[1742194279572,3.48592226,1892.9,1892.8,2.50052]
[1742194279770,4.81482226,1892.9,1892.8,2.50052]
[1742194279972,1.33682226,1892.9,1892.8,2.50052]
[1742194280164,4.81482226,1892.9,1892.8,2.50052]
[1742194280468,1.33682226,1892.9,1892.8,2.50052]
[1742194281272,1.33682226,1892.9,1892.8,5.70832]
[1742194282071,0.00792226,1892.9,1892.8,5.70832]
[1742194283572,1.4351,1893.2,1893.1,1.05655]
[1742194283772,4.9121,1893.2,1893.1,1.05655]
[1742194284567,4.9121,1893.2,1893.1,2.38995]
[1742194285769,1.4351,1893.2,1893.1,2.38995]
[1742194286169,3.477,1893.2,1893.1,2.38995]
[1742194287069,3.48492226,1893.3,1893.2,1.05649]
[1742194287268,3.48492226,1893.3,1893.2,2.50529]
[1742194287574,0.00792226,1893.3,1893.2,2.50529]
[1742194287877,0.00792226,1893.3,1893.2,1.05649]
[1742194288072,1.34622226,1893.3,1893.2,1.05649]
[1742194291070,3.2078,1893.6,1893.5,1.05632]
[1742194291274,6.2776,1893.9,1893.8,1.05612]
[1742194291872,6.2776,1893.9,1893.8,2.51192]
[1742194292683,2.8016,1893.9,1893.8,2.51192]
[1742194292878,1.4446,1893.9,1893.8,2.51192]
[1742194293281,0.00792226,1894.0,1893.9,1.0561]
[1742194293477,1.37392226,1894.0,1893.9,2.438]
[1742194294078,1.37392226,1894.0,1893.9,5.6458]
[1742194294385,0.00792226,1894.0,1893.9,5.6458]
[1742194294680,1.366,1894.2,1894.1,1.05599]
[1742194295087,4.1502,1894.4,1894.3,1.05588]
[1742194295772,0.00792226,1894.5,1894.4,1.05582]
[1742194295970,0.00792226,1894.5,1894.4,4.26362]
[1742194296673,2.26e-06,1894.5,1894.4,4.26362]
[1742194296869,2.26e-06,1894.5,1894.4,7.44102]
[1742194297078,2.26e-06,1894.5,1894.4,8.83042]
[1742194297583,1.3532,1895.2,1895.1,1.05543]
[1742194299084,0.00792226,1895.3,1895.2,1.05538]
[1742194300772,1.34742226,1895.3,1895.2,1.05538]
[1742194301087,1.34742226,1895.3,1895.0,2.50858226]
[1742194301385,0.7113,1895.2,1895.1,1.05543]
[1742194302477,1.34742226,1895.3,1895.2,1.05538]
[1742194303277,1.34742226,1895.3,1895.1,1.05539]
[1742194303683,1.34742226,1895.3,1895.0,1.38412226]
[1742194303884,1.34742226,1895.3,1895.1,1.0554]
[1742194304089,1.34742226,1895.3,1895.2,1.05538]
[1742194310378,30.0043,1895.5,1895.1,3.2078]
[1742194310584,9.0778,1895.9,1895.8,1.05504]
[1742194310784,3.472,1896.0,1895.9,1.05499]
[1742194310988,4.1683,1896.0,1895.9,1.05499]
[1742194311186,3.2078,1896.1,1896.0,1.05493]
[1742194311390,3.2078,1896.2,1895.9,1.05494]
[1742194311585,3.2078,1896.2,1895.9,1.05496]
[1742194311894,2.4602,1896.1,1895.9,0.00792226]
[1742194312191,1.3995,1896.0,1895.9,0.00792226]
[1742194312390,1.3995,1896.0,1895.9,1.06291226]
[1742194313786,4.8715,1896.0,1895.9,1.06291226]
[1742194314895,8.0793,1896.0,1895.9,0.00792226]
[1742194316190,8.0793,1896.0,1895.9,1.06291226]
[1742194318494,3.2078,1896.3,1895.9,0.00792226]
[1742194318693,3.2078,1896.3,1896.0,1.4171]
[1742194318694,0.7042,1896.2,1896.0,1.4171]
[1742194318894,1.4588,1896.1,1896.0,2.47203]
[1742194320197,0.7042,1896.2,1896.1,1.05488]
[1742194320498,2.0747,1896.2,1896.1,2.43738]
[1742194320900,1.3705,1896.2,1896.1,2.43738]
[1742194321302,0.7138,1896.3,1896.2,1.05482]
[1742194321501,0.7138,1896.3,1896.2,2.43732]
[1742194321704,2.0843,1896.3,1896.2,2.43732]
[1742194322707,1.3705,1896.3,1896.2,2.43732]
[1742194322906,0.6645,1896.5,1896.4,1.05471]
[1742194323102,4.8019,1896.5,1896.4,1.05471]
[1742194323301,1.3279,1896.5,1896.4,1.05471]
[1742194324803,1.3279,1896.5,1896.3,1.4369]
[1742194325208,1.3279,1896.5,1896.4,1.05471]
[1742194325608,5.87,1896.6,1896.5,1.05465]
[1742194325809,7.2592,1896.6,1896.5,1.05465]
[1742194326109,1.3892,1896.6,1896.5,1.05465]
[1742194327597,1.3892,1896.6,1896.4,1.05468]
[1742194327996,1.3892,1896.6,1896.5,1.05465]
[1742194328808,11.52164,1896.6,1896.3,1.05475]
[1742194329016,10.467,1896.6,1896.1,1.4593]
[1742194329310,1.4163,1896.5,1896.4,1.05467]
[1742194329907,2.47101,1896.5,1896.2,1.0548]
[1742194330215,8.39993,1896.4,1896.1,1.05484]
[1742194330407,9.81623,1896.4,1896.1,1.05484]
[1742194330709,9.81623,1896.4,1896.0,4.6671]
[1742194330710,2.0921,1896.3,1896.2,1.05482]
[1742194331904,2.0921,1896.3,1896.1,2.51414]
[1742194332110,0.6758,1896.3,1896.2,1.05482]
[1742194333615,0.6758,1896.3,1896.1,2.51413]
[1742194333817,0.6758,1896.3,1896.2,1.05482]
[1742194334615,1.73058,1896.3,1896.1,1.4593]
[1742194334821,1.05493,1896.0,1895.9,0.00792226]
[1742194335123,6.6938,1896.0,1895.4,1.4343]
[1742194335416,1.4069,1895.9,1895.8,1.05504]
[1742194336619,1.4069,1895.9,1895.8,2.48934]
[1742194338018,3.49392226,1896.0,1895.9,1.05499]
[1742194338317,3.49392226,1896.0,1895.9,2.44549]
[1742194338512,0.00792226,1896.0,1895.9,2.44549]
[1742194338711,3.49292226,1896.0,1895.9,2.44549]
[1742194342425,0.00792226,1896.0,1895.9,2.44549]
[1742194342626,3.2078,1896.2,1896.1,1.05488]
[1742194343122,3.2078,1896.5,1896.1,1.05488]
[1742194343324,6.6918,1896.5,1896.1,2.0462]
[1742194343526,7.74646,1896.5,1896.2,1.05478]
[1742194343819,7.74646,1896.5,1896.2,2.42598]
[1742194344019,1.374,1896.4,1896.0,3.8836]
[1742194344223,1.374,1896.4,1896.0,0.6758]
[1742194344224,4.2626,1896.3,1896.0,0.6758]
[1742194344418,5.5785,1896.2,1896.1,1.05488]
[1742194344621,6.2832,1896.2,1896.1,1.05488]
[1742194345613,5.5667,1896.2,1896.1,1.05488]
[1742194347123,6.6948,1896.3,1896.2,1.05482]
[1742194348221,7.3675,1896.3,1896.2,1.05482]
[1742194349021,7.3675,1896.3,1896.0,1.4108]
[1742194349226,2.1536,1896.2,1896.1,1.05488]
[1742194349919,2.1536,1896.2,1895.8,3.8828]
[1742194350127,4.5644,1896.1,1895.8,1.3839]
[1742194350428,4.8416,1896.0,1895.9,2.43884]
[1742194350723,4.8416,1896.0,1895.8,1.05503]
[1742194351027,2.0298,1895.9,1895.7,1.06298226]
[1742194351229,1.3566,1895.8,1895.7,1.06298226]
[1742194351429,2.0677,1895.8,1895.7,0.00792226]
[1742194351727,8.99274,1895.8,1895.5,1.05521]
[1742194351923,4.8536,1895.7,1895.5,1.05521]
[1742194352129,1.3566,1895.6,1895.5,1.05521]
[1742194353420,1.3566,1895.6,1895.4,4.27095226]
[1742194353616,0.6732,1895.5,1895.4,0.00792226]
[1742194353816,0.6732,1895.5,1895.4,1.06319226]
[1742194355124,1.3566,1895.6,1895.5,1.05521]
[1742194355323,4.8506,1895.6,1895.5,2.49251]
[1742194356621,5.90576,1895.6,1895.4,1.06316226]
[1742194356830,6.44241,1895.5,1895.4,0.00792226]
[1742194357132,5.3872,1895.5,1895.4,1.06319226]
[1742194357431,5.3872,1895.5,1895.4,0.00792226]
[1742194357629,6.44241,1895.5,1895.4,0.00792226]
[1742194358228,5.3872,1895.5,1895.4,0.00792226]
[1742194358721,5.3872,1895.5,1895.4,1.33952226]
[1742194359632,5.3872,1895.5,1895.4,2.39479226]
[1742194360927,8.8732,1895.5,1895.4,2.39479226]
[1742194361431,8.8732,1895.5,1895.4,1.33952226]
[1742194361628,5.6654,1895.5,1895.4,2.39479226]
[1742194362132,5.6654,1895.5,1895.4,1.33952226]
[1742194362337,8.8732,1895.5,1895.4,1.06319226]
[1742194362529,14.7432,1895.5,1895.4,1.06319226]
[1742194363938,14.7432,1895.5,1895.4,0.00792226]
[1742194364129,15.79841,1895.5,1895.4,0.00792226]
[1742194364436,14.7432,1895.5,1895.4,0.00792226]
[1742194364829,15.79841,1895.5,1895.4,0.00792226]
[1742194365128,14.7392,1895.5,1895.4,0.00792226]
[1742194365536,14.7392,1895.5,1895.4,1.06319226]
[1742194368739,15.79441,1895.5,1895.4,0.00792226]
[1742194369237,1.05535,1895.3,1895.1,2.43229]
[1742194369433,1.05535,1895.3,1895.0,0.6746]
[1742194369434,5.2321,1895.2,1895.0,1.05545]
[1742194369635,0.6749,1895.1,1895.0,1.05545]
[1742194369830,2.1263,1895.1,1895.0,1.3769]
[1742194370031,3.18173,1895.1,1894.9,1.05552]
[1742194370233,1.4514,1895.0,1894.8,3.2078]
[1742194370433,3.479,1894.9,1894.8,4.27132226]
[1742194371431,1.4514,1895.0,1894.9,1.05554]
[1742194371739,4.9354,1895.0,1894.9,1.05554]
[1742194371933,4.9354,1895.0,1894.9,2.44154]
[1742194372744,5.99089,1895.0,1894.9,1.386]
[1742194372946,4.9354,1895.0,1894.9,1.386]
[1742194373338,5.99089,1895.0,1894.9,1.386]
[1742194374347,1.05554,1894.9,1894.8,0.00792226]
[1742194374540,2.49404,1894.9,1894.8,0.00792226]
[1742194374846,8.45261682,1894.9,1894.8,0.00792226]
[1742194376339,1.05569,1894.7,1894.4,1.0558]
[1742194376546,4.1877,1894.6,1894.5,1.05577]
[1742194376744,5.6262,1894.6,1894.5,1.05577]